[Event "V Copa Marcel Duchamp 2022"]
[Site "Montevideo"]
[Date "2022.02.13"]
[Round "2.30"]
[White "Fernandez, Maria Florencia"]
[Black "Perez Selios, Luis"]
[Result "1-0"]
[ECO "D18"]
[WhiteElo "2200"]
[BlackElo "1429"]
[Annotator "ChessBase"]
[PlyCount "75"]
[EventDate "2022.02.12"]
[EventCountry "URU"]
[SourceTitle "playchess.com"]
[Source "ChessBase"]
[SourceQuality "1"]
[TimeControl "5400+30"]

1. d4 {[%emt 0:05:59]} d5 {[%emt 0:00:32]} 2. c4 {[%emt 0:00:25]} c6 {[%emt 0:00:33]} 3. Nc3 {[%emt 0:00:07]} Nf6 {[%emt 0:00:32]} 4. Nf3 {[%emt 0:00:20]} dxc4 {[%emt 0:00:36]} 5. a4 {[%emt 0:00:54]} Bf5 {[%emt 0:00:09]} 6. e3 {[%emt 0:00:41]} e6 {[%emt 0:00:11]} 7. Bxc4 {[%emt 0:00:05]} Bb4 {[%emt 0:00:12]} 8. Qb3 {[%emt 0:00:49]} Qe7 {[%emt 0:00:14]} 9. O-O {[%emt 0:00:36]} Nbd7 {[%emt 0:01:30]} 10. Na2 {[%emt 0:02:45]} a5 {[%emt 0:04:01]} 11. Nxb4 {[%emt 0:00:15]} Qxb4 {[%emt 0:00:10]} 12. Qxb4 {[%emt 0:00:20]} axb4 {[%emt 0:00:08]} 13. Bd2 {[%emt 0:00:10]} Nb6 {[%emt 0:00:08]} 14. Bb3 {[%emt 0:00:50]} Nbd5 {[%emt 0:00:27]} 15. Rfe1 {[%emt 0:03:39]} Ne4 {[%emt 0:01:00]} 16. Bxd5 {[%emt 0:00:37]} Nxd2 {[%emt 0:00:45]} 17. Bxc6+ {[%emt 0:00:07]} bxc6 {[%emt 0:00:06]} 18. Nxd2 {[%emt 0:00:04]} O-O {[%emt 0:00:24]} 19. Rec1 {[%emt 0:02:05]} Rfc8 {[%emt 0:01:33]} 20. Rc4 {[%emt 0:03:43]} Bd3 {[%emt 0:04:04]} 21. Rxb4 {[%emt 0:00:32]} c5 {[%emt 0:00:08]} 22. dxc5 {[%emt 0:00:48]} Rxc5 {[%emt 0:00:10]} 23. Nb3 {[%emt 0:02:04]} Rc2 {[%emt 0:01:45]} 24. Nd4 {[%emt 0:01:24]} Rd2 {[%emt 0:01:55]} 25. a5 {[%emt 0:00:43]} Ba6 {[%emt 0:02:11]} 26. Nc6 {[%emt 0:06:42]} Kf8 {[%emt 0:06:34]} 27. Rb6 {[%emt 0:01:56]} Ke8 {[%emt 0:01:49]} 28. b4 {[%emt 0:00:23]} Rb2 {[%emt 0:00:52]} 29. Rd1 {[%emt 0:01:13]} f6 {[%emt 0:01:14]} 30. h3 {[%emt 0:01:05]} e5 {[%emt 0:00:29]} 31. Nb8 {[%emt 0:03:30]} Be2 {[%emt 0:03:02]} 32. Rc1 {[%emt 0:00:42]} Bd3 {[%emt 0:02:22]} 33. Rb7 {[%emt 0:01:25]} Rc2 {[%emt 0:01:23]} 34. Rxc2 {[%emt 0:01:59]} Bxc2 {[%emt 0:00:10]} 35. Nc6 {[%emt 0:06:12]} Be4 {[%emt 0:02:22]} 36. b5 {[%emt 0:00:18]} Bxc6 {[%emt 0:01:23]} 37. bxc6 {[%emt 0:00:04]} Rxa5 38. Rb8+ 1-0

[Event "V Copa Marcel Duchamp 2022"]
[Site "Montevideo"]
[Date "2022.02.13"]
[Round "2.31"]
[White "Lanzilotta, Filippo"]
[Black "Muniz, Rafael"]
[Result "0-1"]
[ECO "B07"]
[WhiteElo "1299"]
[BlackElo "2194"]
[Annotator "ChessBase"]
[PlyCount "48"]
[EventDate "2022.02.12"]
[EventCountry "URU"]
[SourceTitle "playchess.com"]
[Source "ChessBase"]
[SourceQuality "1"]
[TimeControl "5400+30"]

1. e4 {[%emt 0:13:22]} d6 {[%emt 0:00:07]} 2. d4 {[%emt 0:00:15]} Nf6 {[%emt 0:00:23]} 3. Nc3 {[%emt 0:00:35]} c6 {[%emt 0:01:43]} 4. Bd3 {[%emt 0:01:00]} e5 {[%emt 0:01:09]} 5. Nge2 {[%emt 0:01:38]} Be7 {[%emt 0:01:58]} 6. Be3 {[%emt 0:02:24]} b5 {[%emt 0:04:34]} 7. a3 {[%emt 0:04:33]} a6 {[%emt 0:03:32]} 8. O-O {[%emt 0:01:33]} O-O {[%emt 0:03:49]} 9. f4 {[%emt 0:01:09]} Ng4 {[%emt 0:01:26]} 10. Bd2 {[%emt 0:00:30]} exd4 {[%emt 0:01:07]} 11. Nxd4 {[%emt 0:00:59]} Qb6 {[%emt 0:03:56]} 12. Nce2 {[%emt 0:01:42]} Bf6 {[%emt 0:04:35]} 13. e5 {[%emt 0:03:51]} dxe5 {[%emt 0:01:02]} 14. fxe5 {[%emt 0:00:53]} Bxe5 {[%emt 0:01:02]} 15. c3 {[%emt 0:00:41]} c5 {[%emt 0:02:05]} 16. Qb3 {[%emt 0:08:40]} cxd4 {[%emt 0:02:32]} 17. Bc4 {[%emt 0:01:21]} dxc3+ {[%emt 0:02:09]} 18. Kh1 {[%emt 0:00:09]} Nf2+ {[%emt 0:03:31]} 19. Kg1 {[%emt 0:00:04]} cxb2 {[%emt 0:05:16]} 20. Rae1 {[%emt 0:00:57]} Nd3+ {[%emt 0:03:00]} 21. Kh1 {[%emt 0:00:12]} Nxe1 {[%emt 0:01:19]} 22. Rxf7 {[%emt 0:06:10]} Rxf7 {[%emt 0:00:47]} 23. Bxf7+ {[%emt 0:00:46]} Kh8 {[%emt 0:00:50]} 24. Qd5 {[%emt 0:02:37]} Bb7 0-1

[Event "V Copa Marcel Duchamp 2022"]
[Site "Montevideo"]
[Date "2022.02.13"]
[Round "2.34"]
[White "Martello, Benjamin"]
[Black "Martinez Alvarez, Mateo"]
[Result "0-1"]
[ECO "B50"]
[WhiteElo "1594"]
[BlackElo "1093"]
[Annotator "NA"]
[PlyCount "74"]
[EventDate "2022.02.12"]
[EventCountry "URU"]
[SourceTitle "playchess.com"]
[Source "ChessBase"]
[SourceQuality "1"]
[TimeControl "5400+30"]

1. e4 c5 2. Nf3 d6 3. c3 Nf6 4. Be2 Nc6 5. d3 e6 6. O-O Be7 7. Re1 O-O 8. Bf1 Qc7 9. d4 cxd4 10. cxd4 a6 11. Nc3 b5 12. d5 b4 13. dxc6 bxc3 14. e5 Nd5 15. Qa4 dxe5 16. Nxe5 Bf6 17. Ng4 Be7 18. Bd3 f5 19. Ne5 Bf6 20. f4 Qb6+ 21. Kh1 Bxe5 22. fxe5 cxb2 23. Bxb2 Qxb2 24. Rab1 Qd2 25. Bc4 Nc3 26. Qb3 Nxb1 27. Bxe6+ Kh8 28. Rxb1 Bxe6 29. Qxe6 Rad8 30. h3 Qd5 31. Qxd5 Rxd5 32. c7 Rxe5 33. Rb8 Ree8 34. Rb7 Re1+ 35. Kh2 Rc1 36. Rb8 Kg8 37. Rb7 Rc8 0-1

[Event "V Copa Marcel Duchamp 2022"]
[Site "Montevideo"]
[Date "2022.02.13"]
[Round "2.36"]
[White "Dotta, Gian Franco"]
[Black "Blanco, Rudemar Ernesto"]
[Result "1-0"]
[ECO "D30"]
[WhiteElo "1991"]
[BlackElo "1549"]
[Annotator "NA"]
[PlyCount "54"]
[EventDate "2022.02.12"]
[EventCountry "URU"]
[SourceTitle "playchess.com"]
[Source "ChessBase"]
[SourceQuality "1"]
[TimeControl "5400+30"]

1. d4 d5 2. c4 e6 {[%emt 0:00:50]} 3. g3 {[%emt 0:00:19]} Nf6 {[%emt 0:01:34]} 4. Nf3 {[%emt 0:00:12]} Bb4+ {[%emt 0:01:17]} 5. Bd2 {[%emt 0:00:14]} Be7 {[%emt 0:00:08]} 6. Bg2 {[%emt 0:00:42]} O-O {[%emt 0:01:17]} 7. O-O {[%emt 0:00:15]} Nbd7 {[%emt 0:00:26]} 8. Qc2 {[%emt 0:01:13]} b6 {[%emt 0:00:33]} 9. Ne5 {[%emt 0:01:29]} Nxe5 {[%emt 0:04:27]} 10. dxe5 {[%emt 0:00:03]} Ne8 {[%emt 0:00:16]} 11. cxd5 {[%emt 0:02:35]} exd5 {[%emt 0:00:16]} 12. Qc6 {[%emt 0:00:22]} Rb8 {[%emt 0:00:42]} 13. Qxd5 {[%emt 0:00:39]} Qxd5 {[%emt 0:00:47]} 14. Bxd5 {[%emt 0:00:03]} Bb7 {[%emt 0:01:30]} 15. Bxb7 {[%emt 0:01:21]} Rxb7 {[%emt 0:00:11]} 16. Nc3 {[%emt 0:00:44]} c6 {[%emt 0:00:42]} 17. Rac1 {[%emt 0:00:40]} Nc7 {[%emt 0:00:26]} 18. Ne4 {[%emt 0:00:54]} c5 {[%emt 0:00:46]} 19. Nd6 {[%emt 0:00:55]} Bxd6 {[%emt 0:05:02]} 20. exd6 {[%emt 0:00:08]} Nb5 {[%emt 0:00:14]} 21. Bf4 {[%emt 0:00:26]} Rd7 {[%emt 0:00:21]} 22. Rcd1 {[%emt 0:01:16]} Rfd8 {[%emt 0:03:16]} 23. Rd2 {[%emt 0:00:11]} Nd4 {[%emt 0:00:58]} 24. Kg2 {[%emt 0:00:29]} f6 {[%emt 0:01:08]} 25. h3 {[%emt 0:00:29]} Ne6 {[%emt 0:00:30]} 26. Rfd1 {[%emt 0:02:01]} Kf7 {[%emt 0:01:17]} 27. Be3 {[%emt 0:01:03]} Nf8 {[%emt 0:01:33]} 1-0

[Event "V Copa Marcel Duchamp 2022"]
[Site "Montevideo"]
[Date "2022.02.13"]
[Round "3.21"]
[White "Masoller, Martin"]
[Black "Guerrero, Alvaro"]
[Result "0-1"]
[ECO "B19"]
[WhiteElo "1743"]
[BlackElo "2123"]
[Annotator "NA"]
[PlyCount "60"]
[EventDate "2022.02.12"]
[EventCountry "URU"]
[SourceTitle "playchess.com"]
[Source "ChessBase"]
[SourceQuality "1"]
[TimeControl "5400+30"]

1. e4 c6 {[%emt 0:00:34]} 2. d4 {[%emt 0:00:12]} d5 {[%emt 0:00:04]} 3. Nc3 {[%emt 0:00:41]} dxe4 {[%emt 0:00:05]} 4. Nxe4 {[%emt 0:00:10]} Bf5 {[%emt 0:00:06]} 5. Ng3 {[%emt 0:00:12]} Bg6 {[%emt 0:00:04]} 6. h4 {[%emt 0:00:16]} h6 {[%emt 0:00:06]} 7. Nf3 {[%emt 0:00:17]} Nd7 {[%emt 0:00:40]} 8. h5 {[%emt 0:01:24]} Bh7 {[%emt 0:00:04]} 9. Bd3 {[%emt 0:00:23]} Bxd3 {[%emt 0:00:04]} 10. Qxd3 {[%emt 0:00:07]} Ngf6 {[%emt 0:00:55]} 11. Bd2 {[%emt 0:00:56]} e6 {[%emt 0:00:11]} 12. O-O-O {[%emt 0:01:11]} Qc7 {[%emt 0:00:32]} 13. Kb1 {[%emt 0:02:37]} Bd6 {[%emt 0:01:28]} 14. Ne2 {[%emt 0:01:55]} O-O-O {[%emt 0:01:28]} 15. g3 {[%emt 0:11:01]} Ng4 {[%emt 0:05:59]} 16. Rdf1 {[%emt 0:02:13]} Kb8 {[%emt 0:06:16]} 17. Bf4 {[%emt 0:07:44]} c5 $15 {[%emt 0:05:08]} 18. Bxd6 {[%emt 0:05:23]} Qxd6 {[%emt 0:00:04]} 19. Qa3 {[%emt 0:00:24]} Qc7 {[%emt 0:05:22]} 20. Rh4 {[%emt 0:03:39]} f5 {[%emt 0:03:48]} 21. Nd2 {[%emt 0:10:46]} cxd4 {[%emt 0:09:31]} 22. Nxd4 {[%emt 0:00:52]} Nc5 {[%emt 0:00:24]} 23. N2b3 {[%emt 0:02:19]} Nxb3 {[%emt 0:03:10]} 24. Nxb3 {[%emt 0:02:22]} Rd5 {[%emt 0:04:08]} 25. Rhh1 {[%emt 0:02:22]} Rhd8 {[%emt 0:01:42]} 26. f4 {[%emt 0:01:03]} a5 {[%emt 0:07:54]} 27. Qa4 {[%emt 0:01:31]} Ne3 {[%emt 0:00:54]} 28. Rc1 {[%emt 0:00:35]} Nc4 {[%emt 0:00:32]} 29. Rhe1 {[%emt 0:01:52]} Nb6 30. Qa3 a4 0-1

[Event "V Copa Marcel Duchamp 2022"]
[Site "Montevideo"]
[Date "2022.02.13"]
[Round "3.22"]
[White "Castro, Cesar"]
[Black "Zaruski, Julio"]
[Result "1-0"]
[ECO "B91"]
[WhiteElo "2097"]
[BlackElo "1764"]
[Annotator "ChessBase"]
[PlyCount "107"]
[EventDate "2022.02.12"]
[EventCountry "URU"]
[SourceTitle "playchess.com"]
[Source "ChessBase"]
[SourceQuality "1"]
[TimeControl "5400+30"]

1. e4 c5 2. Nf3 d6 3. Nc3 Nf6 4. d4 cxd4 5. Nxd4 a6 6. g3 e5 7. Nb3 Be7 8. Bg2 Be6 9. O-O O-O 10. h3 Qc7 11. Be3 Nbd7 12. a4 Bc4 13. Re1 b5 14. axb5 axb5 15. Nd2 b4 16. Nxc4 Qxc4 17. Nd5 Nxd5 18. exd5 f5 19. Bf1 Qc7 20. Qd2 Qb7 21. b3 Bf6 22. Bg5 g6 23. Ra4 Bxg5 24. Qxg5 Nc5 25. Rxa8 Qxa8 26. Qe7 Qd8 27. Rxe5 Ne4 28. Qxd8 Rxd8 29. Re7 Rc8 30. Bd3 Nc5 31. Bc4 Rb8 32. Kg2 Rb7 33. Rxb7 Nxb7 34. Kf3 Nc5 35. Ke3 Kf7 36. Bd3 Kf6 37. Kd4 Nd7 38. Kc4 Nb6+ 39. Kxb4 Nxd5+ 40. Kc4 Ke5 41. f4+ Ke6 42. b4 Nf6 43. Be2 h5 44. b5 Ne4 45. b6 Kd7 46. Kb5 Kc8 47. Kc6 d5 48. Ba6+ Kb8 49. Kxd5 Nxg3 50. c4 h4 51. c5 Nh5 52. Ke5 Ng7 53. c6 Ne8 54. Ke6 1-0

[Event "V Copa Marcel Duchamp 2022"]
[Site "Montevideo"]
[Date "2022.02.13"]
[Round "3.23"]
[White "Larrea, Daniela"]
[Black "Brizzi, Milagros Tatiana"]
[Result "0-1"]
[ECO "D12"]
[WhiteElo "1705"]
[BlackElo "2063"]
[Annotator "ChessBase"]
[PlyCount "52"]
[EventDate "2022.02.12"]
[EventCountry "URU"]
[SourceTitle "playchess.com"]
[Source "ChessBase"]
[SourceQuality "1"]
[TimeControl "5400+30"]

1. d4 {[%emt 0:06:56]} d5 {[%emt 0:00:21]} 2. c4 {[%emt 0:00:07]} c6 {[%emt 0:00:07]} 3. Nf3 {[%emt 0:00:12]} Nf6 {[%emt 0:00:13]} 4. e3 {[%emt 0:01:00]} Bf5 {[%emt 0:00:33]} 5. Nc3 {[%emt 0:00:30]} e6 {[%emt 0:00:33]} 6. Bd3 {[%emt 0:01:43]} Bxd3 {[%emt 0:01:39]} 7. Qxd3 {[%emt 0:00:10]} Nbd7 {[%emt 0:01:47]} 8. O-O {[%emt 0:00:58]} Bb4 {[%emt 0:03:55]} 9. Bd2 {[%emt 0:04:55]} a5 {[%emt 0:03:32]} 10. Rac1 {[%emt 0:05:15]} O-O {[%emt 0:02:05]} 11. Rfd1 {[%emt 0:03:32]} Re8 {[%emt 0:02:48]} 12. Ne2 {[%emt 0:10:44]} Bd6 {[%emt 0:09:02]} 13. Ng3 {[%emt 0:05:50]} Bxg3 {[%emt 0:04:19]} 14. hxg3 {[%emt 0:00:29]} Ne4 {[%emt 0:00:53]} 15. Be1 {[%emt 0:03:50]} f5 {[%emt 0:02:53]} 16. Nd2 {[%emt 0:14:57]} Qg5 {[%emt 0:04:26]} 17. Nf1 {[%emt 0:04:32]} Rf8 {[%emt 0:09:02]} 18. f3 {[%emt 0:03:34]} Nd6 {[%emt 0:02:44]} 19. c5 {[%emt 0:01:22]} Nf7 {[%emt 0:01:28]} 20. e4 {[%emt 0:07:41]} fxe4 {[%emt 0:02:00]} 21. fxe4 {[%emt 0:00:14]} Nf6 {[%emt 0:01:09]} 22. e5 {[%emt 0:03:11]} Ng4 {[%emt 0:01:20]} 23. Nh2 {[%emt 0:03:30]} Nxh2 {[%emt 0:02:41]} 24. Kxh2 {[%emt 0:00:07]} Nh6 {[%emt 0:00:12]} 25. g4 {[%emt 0:02:27]} Nxg4+ {[%emt 0:00:39]} 26. Kg1 {[%emt 0:00:04]} Ne3 {[%emt 0:01:26]} 0-1

[Event "V Copa Marcel Duchamp 2022"]
[Site "Montevideo"]
[Date "2022.02.13"]
[Round "3.24"]
[White "Pichuaga, Juan Pablo"]
[Black "Parma, Pamela"]
[Result "1-0"]
[ECO "C40"]
[WhiteElo "2030"]
[BlackElo "1761"]
[Annotator "NA"]
[PlyCount "83"]
[EventDate "2022.02.12"]
[EventCountry "URU"]
[SourceTitle "playchess.com"]
[Source "ChessBase"]
[SourceQuality "1"]
[TimeControl "5400+30"]

1. e4 {[%emt 0:00:39]} e5 {[%emt 0:14:23]} 2. Nf3 {[%emt 0:01:15]} d5 {[%emt 0:00:12]} 3. d3 {[%emt 0:05:59]} dxe4 {[%emt 0:00:57]} 4. dxe4 {[%emt 0:00:27]} Qxd1+ {[%emt 0:00:42]} 5. Kxd1 {[%emt 0:00:07]} Nc6 {[%emt 0:00:35]} 6. Bd3 {[%emt 0:08:03]} Bg4 {[%emt 0:05:25]} (6... Nf6 {is more appropriate.}) 7. c3 {[%emt 0:01:59]} O-O-O {[%emt 0:07:19]} 8. Kc2 {[%emt 0:00:58]} Bc5 {[%emt 0:00:24]} 9. Ng5 $11 {[%emt 0:05:31]} Bh5 {[%emt 0:08:11]} 10. f3 {[%emt 0:08:26]} h6 {[%emt 0:09:42]} 11. Nh3 {[%emt 0:01:08]} Nge7 {[%emt 0:01:00]} 12. Re1 {[%emt 0:04:56]} f5 {[%emt 0:12:48]} 13. Be3 {[%emt 0:12:55]} fxe4 {[%emt 0:03:55]} 14. Bxe4 {[%emt 0:02:56]} Bxe3 {[%emt 0:01:24]} 15. Rxe3 {[%emt 0:00:35]} Nd5 {[%emt 0:13:55]} 16. Re1 {[%emt 0:08:03]} Rhf8 {[%emt 0:09:12]} 17. Na3 {[%emt 0:08:31]} Nf4 {[%emt 0:04:35]} 18. Nxf4 {[%emt 0:01:01]} exf4 {[%emt 0:00:02]} 19. Bxc6 {[%emt 0:05:05]} bxc6 {[%emt 0:00:05]} 20. Rad1 {[%emt 0:00:16]} Rf6 {[%emt 0:02:16]} 21. Rxd8+ {[%emt 0:09:49]} Kxd8 {[%emt 0:00:02]} 22. Nc4 {[%emt 0:05:08]} Bf7 {[%emt 0:00:45]} 23. Ne5 {[%emt 0:01:28]} Bg8 {[%emt 0:01:48]} 24. c4 {[%emt 0:01:58]} Kc8 {[%emt 0:00:47]} 25. Kc3 {[%emt 0:00:16]} Kb7 {[%emt 0:00:16]} 26. b4 {[%emt 0:00:30]} g5 {[%emt 0:00:23]} 27. Nd7 {[%emt 0:00:57]} Rd6 {[%emt 0:00:36]} 28. Nc5+ {[%emt 0:01:04]} Kc8 {[%emt 0:00:57]} 29. Re8+ {[%emt 0:00:42]} Rd8 {[%emt 0:00:02]} 30. Re7 {[%emt 0:00:37]} Rd1 {[%emt 0:01:33]} 31. Rg7 {[%emt 0:00:56]} Rd8 {[%emt 0:00:56]} 32. Na6 {[%emt 0:00:38]} Re8 {[%emt 0:00:38]} 33. Rxc7+ {[%emt 0:00:59]} Kd8 {[%emt 0:00:01]} 34. Rxa7 {[%emt 0:00:44]} Re3+ {[%emt 0:00:29]} 35. Kd4 {[%emt 0:00:19]} Be6 {[%emt 0:00:21]} 36. Nc5 {[%emt 0:01:09]} Bf5 {[%emt 0:00:15]} 37. Rf7 {[%emt 0:00:48]} Bb1 {[%emt 0:00:47]} 38. a4 {[%emt 0:00:26]} Re2 {[%emt 0:00:23]} 39. Nb7+ {[%emt 0:00:27]} Ke8 {[%emt 0:00:52]} 40. Nd6+ {[%emt 0:00:08]} Kd8 {[%emt 0:00:09]} 41. Kc5 {[%emt 0:00:15]} Rxg2 {[%emt 0:01:06]} 42. Kxc6 {[%emt 0:00:21]} 1-0

[Event "V Copa Marcel Duchamp 2022"]
[Site "Montevideo"]
[Date "2022.02.13"]
[Round "3.25"]
[White "Torales, Agustin"]
[Black "Mateus, Martha"]
[Result "1-0"]
[ECO "B90"]
[WhiteElo "1682"]
[BlackElo "2019"]
[Annotator "NA"]
[PlyCount "119"]
[EventDate "2022.02.12"]
[EventCountry "URU"]
[SourceTitle "playchess.com"]
[Source "ChessBase"]
[SourceQuality "1"]
[TimeControl "5400+30"]

1. e4 {[%emt 0:00:03]} c5 {[%emt 0:03:03]} 2. Nf3 {[%emt 0:00:11]} d6 {[%emt 0:00:10]} 3. d4 {[%emt 0:00:13]} cxd4 {[%emt 0:00:06]} 4. Nxd4 {[%emt 0:00:06]} Nf6 {[%emt 0:00:03]} 5. Nc3 {[%emt 0:00:09]} a6 {[%emt 0:00:02]} 6. Bc4 {[%emt 0:00:45]} e6 {[%emt 0:00:21]} 7. Bb3 {[%emt 0:00:06]} Nbd7 {[%emt 0:00:19]} 8. O-O {[%emt 0:01:25]} Nc5 {[%emt 0:00:07]} 9. Qe2 {[%emt 0:03:20]} Be7 {[%emt 0:02:05]} 10. f4 {[%emt 0:02:26]} O-O {[%emt 0:02:58]} 11. f5 {[%emt 0:02:28]} Nxb3 {[%emt 0:03:56]} 12. axb3 {[%emt 0:00:19]} e5 {[%emt 0:04:45]} 13. Nf3 {[%emt 0:00:13]} Bd7 {[%emt 0:03:15]} 14. Bg5 {[%emt 0:02:11]} Qb6+ {[%emt 0:14:53]} 15. Kh1 {[%emt 0:00:22]} Bb5 {[%emt 0:00:40]} 16. Nxb5 {[%emt 0:01:04]} Qxb5 {[%emt 0:04:23]} 17. Qxb5 {[%emt 0:00:07]} axb5 {[%emt 0:00:03]} 18. Bxf6 {[%emt 0:00:06]} gxf6 $16 {[%emt 0:00:47]} ({Black should play} 18... Bxf6 $14 19. c3 h5) 19. c4 {[%emt 0:09:24]} Rfc8 {[%emt 0:07:08]} 20. Rxa8 {[%emt 0:03:04]} Rxa8 {[%emt 0:00:02]} 21. g3 {[%emt 0:00:08]} Bf8 {[%emt 0:05:00]} 22. Kg2 {[%emt 0:03:44]} Bh6 {[%emt 0:03:21]} 23. Rf2 {[%emt 0:03:59]} Ra1 {[%emt 0:07:10]} 24. Rc2 {[%emt 0:09:57]} Be3 {[%emt 0:07:49]} 25. Re2 {[%emt 0:08:24]} Bc5 {[%emt 0:01:25]} 26. Re1 {[%emt 0:02:40]} Ra2 {[%emt 0:00:45]} 27. Re2 {[%emt 0:02:01]} bxc4 {[%emt 0:03:19]} 28. bxc4 {[%emt 0:00:08]} Ba3 {[%emt 0:01:05]} 29. Ne1 {[%emt 0:00:04]} Rxb2 {[%emt 0:00:36]} 30. Rxb2 {[%emt 0:00:05]} Bxb2 {[%emt 0:00:12]} 31. Nc2 {[%emt 0:00:29]} Bc3 {[%emt 0:15:04]} 32. Ne3 {[%emt 0:00:09]} Ba5 {[%emt 0:00:05]} 33. Nd5 {[%emt 0:00:36]} Bd8 {[%emt 0:00:06]} 34. g4 {[%emt 0:00:19]} Kf8 {[%emt 0:01:18]} 35. Kg3 {[%emt 0:04:29]} Ke8 {[%emt 0:02:07]} 36. Kh4 {[%emt 0:00:48]} Kd7 {[%emt 0:05:33]} 37. Kh5 {[%emt 0:00:09]} Kc6 {[%emt 0:00:03]} 38. Kh6 {[%emt 0:00:04]} Kc5 {[%emt 0:00:03]} 39. Kxh7 {[%emt 0:00:11]} Kxc4 {[%emt 0:00:34]} 40. h4 {[%emt 0:00:14]} b5 {[%emt 0:02:48]} 41. h5 {[%emt 0:00:06]} Ba5 {[%emt 0:00:28]} 42. Kg7 {[%emt 0:02:57]} Bd2 {[%emt 0:00:40]} 43. Kxf6 {[%emt 0:00:14]} Kd4 {[%emt 0:02:42]} 44. g5 {[%emt 0:00:21]} Kxe4 {[%emt 0:00:22]} 45. g6 {[%emt 0:00:12]} fxg6 {[%emt 0:00:14]} 46. fxg6 {[%emt 0:00:21]} Bh6 {[%emt 0:00:37]} 47. g7 {[%emt 0:00:39]} Bxg7+ {[%emt 0:00:40]} 48. Kxg7 {[%emt 0:00:04]} Kxd5 {[%emt 0:00:27]} 49. h6 {[%emt 0:00:06]} b4 {[%emt 0:00:39]} 50. h7 {[%emt 0:00:05]} Kd4 {[%emt 0:00:37]} 51. h8=Q {[%emt 0:00:10]} b3 {[%emt 0:00:11]} 52. Qh3 {[%emt 0:00:37]} Kc4 {[%emt 0:00:40]} 53. Kf6 {[%emt 0:00:16]} b2 {[%emt 0:00:13]} 54. Qf1+ {[%emt 0:00:17]} Kc3 {[%emt 0:00:48]} 55. Qb1 {[%emt 0:00:05]} e4 {[%emt 0:00:22]} 56. Qxe4 {[%emt 0:00:08]} d5 {[%emt 0:00:01]} 57. Qb1 {[%emt 0:00:08]} d4 {[%emt 0:00:09]} 58. Ke5 {[%emt 0:00:09]} d3 {[%emt 0:00:46]} 59. Ke4 {[%emt 0:00:05]} d2 {[%emt 0:00:34]} 60. Ke3 {[%emt 0:00:04]} 1-0

[Event "V Copa Marcel Duchamp 2022"]
[Site "Montevideo"]
[Date "2022.02.13"]
[Round "3.26"]
[White "Cordero, Daniela"]
[Black "Boabaid, Jorge Alberto Duarde"]
[Result "0-1"]
[ECO "D05"]
[WhiteElo "2011"]
[BlackElo "1756"]
[Annotator "NA"]
[PlyCount "76"]
[EventDate "2022.02.12"]
[EventCountry "URU"]
[SourceTitle "playchess.com"]
[Source "ChessBase"]
[SourceQuality "1"]
[TimeControl "5400+30"]

1. d4 {[%emt 0:01:11]} Nf6 {[%emt 0:00:11]} 2. Nf3 {[%emt 0:00:10]} e6 {[%emt 0:00:17]} 3. e3 {[%emt 0:00:05]} d5 {[%emt 0:00:37]} 4. Bd3 {[%emt 0:00:10]} Bd6 {[%emt 0:00:47]} 5. O-O {[%emt 0:00:37]} b6 {[%emt 0:01:19]} 6. c4 {[%emt 0:00:34]} O-O {[%emt 0:01:15]} 7. cxd5 {[%emt 0:00:19]} exd5 {[%emt 0:00:33]} 8. Nc3 {[%emt 0:00:29]} c6 {[%emt 0:02:39]} 9. e4 {[%emt 0:02:22]} dxe4 {[%emt 0:02:12]} 10. Nxe4 {[%emt 0:00:16]} Be7 {[%emt 0:01:04]} 11. Qc2 {[%emt 0:11:30]} h6 {[%emt 0:02:07]} 12. Rd1 {[%emt 0:03:17]} Be6 {[%emt 0:08:58]} 13. a4 {[%emt 0:04:33]} (13. Ne5 $14) 13... Bd5 {[%emt 0:02:43]} 14. a5 {[%emt 0:01:30]} ({White should try} 14. Ne5 $14) 14... Nbd7 {[%emt 0:00:30]} 15. Bf4 {[%emt 0:02:28]} Nxe4 {[%emt 0:01:43]} 16. Bxe4 {[%emt 0:00:07]} Nf6 $11 {[%emt 0:00:29]} 17. Bxd5 {[%emt 0:01:40]} cxd5 {[%emt 0:02:49]} 18. Bc7 {[%emt 0:07:31]} Qd7 {[%emt 0:02:41]} 19. axb6 {[%emt 0:02:32]} axb6 {[%emt 0:00:12]} 20. Rxa8 {[%emt 0:00:46]} Rxa8 {[%emt 0:00:07]} 21. Bxb6 {[%emt 0:00:27]} Ne4 {[%emt 0:06:00]} 22. Bc5 {[%emt 0:04:57]} Bf6 {[%emt 0:03:09]} 23. Nd2 {[%emt 0:05:35]} Ng5 {[%emt 0:05:30]} 24. h3 {[%emt 0:02:08]} Rc8 {[%emt 0:03:38]} 25. Qd3 {[%emt 0:03:02]} Ne6 {[%emt 0:04:09]} 26. b4 {[%emt 0:01:37]} Nf4 {[%emt 0:00:51]} 27. Qa6 {[%emt 0:03:22]} Re8 {[%emt 0:06:31]} 28. Nf3 {[%emt 0:09:12]} Qf5 {[%emt 0:01:53]} 29. Qf1 {[%emt 0:15:36]} Nxh3+ {[%emt 0:07:29]} 30. gxh3 {[%emt 0:00:10]} Qxf3 {[%emt 0:00:08]} 31. Rd3 {[%emt 0:00:15]} Qf4 {[%emt 0:00:56]} 32. b5 {[%emt 0:02:38]} Re6 {[%emt 0:04:20]} 33. Qd1 {[%emt 0:03:57]} Bd8 {[%emt 0:01:09]} 34. Qd2 {[%emt 0:09:57]} Rg6+ {[%emt 0:02:24]} 35. Kf1 {[%emt 0:00:01]} Qh2 {[%emt 0:02:35]} 36. Re3 {[%emt 0:00:28]} Rg1+ {[%emt 0:02:24]} 37. Ke2 {[%emt 0:00:05]} Bh4 {[%emt 0:02:06]} 38. Rf3 {[%emt 0:02:29]} Qg2 {[%emt 0:01:33]} 0-1